bitfinex-derivatives/quotes_SOLF0:USTF0_20251025
["timestamp","ask_amount","ask_price","bid_price","bid_amount"]
[1761355725664,4.6369,194.07,193.98,2.78]
[1761355725966,65.04,194.05,193.98,2.78]
[1761355726464,64.98,194.04,193.98,2.78]
[1761355727055,64.98,194.03,193.98,2.78]
[1761355727263,4.6369,194.07,193.98,2.78]
[1761355727561,64.96,194.06,193.98,2.78]
[1761355727760,64.96,194.06,193.94,4.6399]
[1761355727761,64.96,194.06,193.94,2.78]
[1761355727962,2.33833588,194.04,193.92,2.33833588]
[1761355728567,2.33833588,194.04,193.91,2.78]
[1761355729068,4.6389,193.99,193.91,2.78]
[1761355729268,64.96,193.98,193.91,2.78]
[1761355730967,4.6389,193.99,193.91,2.78]
[1761355730968,64.9,193.97,193.91,2.78]
[1761355731168,69.5393,193.97,193.88,128.94920091]
[1761355731368,69.5393,193.97,193.88,131.72920091]
[1761355732061,64.9,193.97,193.88,131.72920091]
[1761355732267,64.9,193.97,193.84,4.6421]
[1761355732268,2.33833588,193.95,193.84,2.78]
[1761355732468,64.9,193.97,193.7,208.39833588]
[1761355732469,2.33833588,193.92,193.77,2.33833588]
[1761355732668,2.33833588,193.92,193.78,2.78]
[1761355733963,4.6409,193.9,193.78,7.4237]
[1761355734167,41.28,193.89,193.79,2.78]
[1761355734370,4.6409,193.9,193.79,2.78]
[1761355734566,49.08,193.89,193.79,2.78]
[1761355734766,7.9,193.88,193.79,2.78]
[1761355735671,7.9,193.88,193.81,2.78]
[1761355740971,64.74,193.88,193.82,2.83]
[1761355744480,4.641,193.9,193.82,2.83]
[1761355744481,64.72,193.87,193.82,2.83]
[1761355749285,69.3617,193.87,193.79,7.3733]
[1761355749886,4.6417,193.87,193.79,4.6433]
[1761355750091,64.54,193.86,193.8,2.73]
[1761355750287,4.6421,193.86,193.77,7.374]
[1761355750491,15.06,193.85,193.77,7.374]
[1761355750790,31.28,193.84,193.77,4.644]
[1761355750997,31.28,193.84,193.78,2.73]
[1761355752487,2.33833588,193.83,193.78,2.73]
[1761355754296,2.33833588,193.81,193.73,2.73]
[1761355754895,57.02,193.82,193.76,2.73]
[1761355755392,64.5,193.82,193.76,2.73]
[1761355756196,6.98113588,193.83,193.76,2.73]
[1761355756391,27.98,193.82,193.76,2.73]
[1761355756589,55.86,193.82,193.76,2.73]
[1761355757890,4.6421,193.85,193.78,2.73]
[1761355758094,64.48,193.84,193.78,2.73]
[1761355759093,64.44,193.83,193.78,2.73]
[1761355762393,64.36,193.82,193.78,2.73]
[1761355763893,4.6421,193.85,193.78,2.73]
[1761355764096,64.34,193.84,193.78,2.73]
[1761355764496,4.6421,193.85,193.78,2.73]
[1761355764497,64.32,193.83,193.78,2.73]
[1761355765198,4.6421,193.85,193.78,2.73]
[1761355765401,64.32,193.84,193.78,2.73]
[1761355768893,4.6421,193.85,193.78,2.73]
[1761355769100,64.28,193.83,193.78,2.73]
[1761355769600,4.6421,193.85,193.78,2.73]
[1761355769800,64.24,193.84,193.78,2.73]
[1761355769993,64.22,193.83,193.78,2.73]
[1761355771097,2.33833588,193.84,193.75,2.73]
[1761355771304,18.002898,193.89,193.77,2.73]
[1761355771503,64.26,193.88,193.79,2.73]
[1761355771894,206.36,193.95,193.79,7.45441253]
[1761355772090,2.33833588,193.92,193.8,2.73]
[1761355772294,2.33833588,193.92,193.81,2.73]
[1761355772498,222.07840757,193.95,193.81,2.73]
[1761355772499,206.36,193.95,193.85,2.73]
[1761355772802,2.33833588,193.93,193.85,2.73]
[1761355773300,64.26,193.92,193.86,7.3718]
[1761355773694,2.33833588,193.93,193.86,7.3718]
[1761355773895,64.26,193.92,193.86,7.3718]
[1761355774702,1.498259,193.9,193.87,2.73]
[1761355775295,4.6402,193.94,193.87,2.73]
[1761355775502,1.498259,193.89,193.87,2.73]
[1761355776406,64.2,193.88,193.87,2.73]
[1761355776702,1.498259,193.89,193.87,2.73]
[1761355777002,64.18,193.88,193.87,2.73]
[1761355777407,65.678259,193.88,193.87,2.73]
[1761355778197,1.498259,193.88,193.87,2.73]
[1761355778594,65.638259,193.88,193.87,2.73]
[1761355778994,64.14,193.88,193.84,4.72441253]
[1761355779196,65.638259,193.88,193.84,2.6]
[1761355779606,1.498259,193.88,193.84,2.6]
[1761355779802,64.12,193.87,193.84,2.6]
[1761355779997,1.498259,193.88,193.84,4.6424]
[1761355780203,64.12,193.87,193.85,2.6]
[1761355780503,64.1,193.9,193.85,2.6]
[1761355781100,64.12,193.9,193.85,2.6]
[1761355781606,4.6393,193.97,193.85,2.6]
[1761355781795,1.498259,193.94,193.87,7.32441253]
[1761355782002,1.498259,193.9,193.86,2.6]
[1761355782205,1.498259,193.87,193.86,2.6]
[1761355783508,65.638259,193.91,193.87,2.6]
[1761355785408,1.498259,193.91,193.87,2.6]
[1761355786008,65.598259,193.93,193.88,2.6]
[1761355786610,1.498259,193.91,193.88,2.6]
[1761355789012,4.6399,193.95,193.88,7.2412]
[1761355789215,1.498259,193.91,193.89,2.6]
[1761355790511,1.498259,193.91,193.86,11.99322622]
[1761355790713,1.498259,193.89,193.86,7.2418]
[1761355791014,1.498259,193.89,193.87,2.6]
[1761355791907,1.498259,193.89,193.86,4.6418]
[1761355792107,1.498259,193.89,193.86,7.2418]
[1761355792313,1.498259,193.89,193.87,2.6]
[1761355798120,63.92,193.92,193.87,2.6]
[1761355798322,1.498259,193.9,193.87,2.6]
[1761355804623,63.84,193.92,193.87,4.6415]
[1761355804624,65.318259,193.92,193.87,4.6415]
[1761355804823,65.318259,193.92,193.88,2.67]
[1761355805230,1.498259,193.92,193.88,2.67]
[1761355806124,1.498259,193.92,193.87,4.6415]
[1761355806125,1.498259,193.94,193.87,7.42142622]
[1761355806328,63.78,193.95,193.9,2.67]
[1761355806530,65.278259,193.95,193.9,2.67]
[1761355807428,1.498259,193.95,193.9,2.67]
[1761355808134,1.498259,193.95,193.92,2.66]
[1761355808832,65.238259,193.95,193.92,2.66]
[1761355810435,1.498259,193.95,193.92,2.66]
[1761355812043,1.498259,193.95,193.93,7.3002]
[1761355812337,1.498259,193.95,193.94,2.66]
[1761355818441,63.6,193.96,193.94,2.66]
[1761355818942,1.498259,193.97,193.94,2.66]
[1761355819132,63.58,193.96,193.94,2.66]
[1761355820444,1.498259,193.97,193.94,2.66]
[1761355820647,63.58,193.96,193.94,2.66]
[1761355821746,1.498259,193.97,193.94,2.66]
[1761355821948,63.56,193.96,193.94,2.66]
[1761355822850,1.498259,193.95,193.94,2.66]
[1761355824053,1.498259,193.95,193.93,4.75584393]
[1761355824252,1.498259,193.95,193.9,4.75584393]
[1761355824551,1.498259,193.92,193.9,7.41584393]
[1761355825151,1.498259,193.92,193.9,4.75584393]
[1761355825352,1.498259,193.92,193.91,2.66]
[1761355827846,1.498259,193.92,193.91,7.41584393]
[1761355828247,63.56,193.96,193.91,7.41584393]
[1761355828451,1.498259,193.94,193.92,2.66]
[1761355831148,1.498259,193.94,193.92,7.41584393]
[1761355831353,63.44,193.95,193.92,7.41584393]
[1761355831548,1.498259,193.94,193.92,7.41584393]
[1761355831954,1.498259,193.94,193.93,2.66]
[1761355833855,1.498259,193.95,193.93,2.66]
[1761355834752,63.4,193.96,193.93,2.66]
[1761355834952,2.33971912,193.97,193.93,2.66]
[1761355835154,63.4,193.95,193.93,2.66]
[1761355836060,4.639,193.98,193.94,2.66]
[1761355836061,2.33971912,193.98,193.94,2.66]
[1761355836258,63.38,193.97,193.94,2.66]
[1761355836457,63.4,193.97,193.94,7.41584393]
[1761355836758,2.33971912,194.0,193.96,2.66]
[1761355836959,63.38,193.99,193.96,2.66]
[1761355838163,63.38,193.99,193.96,4.75584393]
[1761355838362,63.38,193.99,193.97,2.76]
[1761355838763,176.04367401,194.02,193.97,2.76]
[1761355839152,176.04367401,194.02,193.97,7.51584393]
[1761355839361,176.04367401,194.02,193.98,2.76]
[1761355839661,63.38,194.01,193.98,2.76]
[1761355839864,63.38,194.0,193.98,2.76]
[1761355841152,173.70395489,194.02,193.98,2.76]
[1761355841358,173.70395489,194.02,193.99,2.76]
[1761355841557,63.36,194.01,193.99,2.76]
[1761355842062,63.36,194.01,193.99,7.51584393]
[1761355842263,63.34,194.01,194.0,2.76]
[1761355844564,63.32,194.02,194.0,2.76]
[1761355845066,63.32,194.02,194.0,4.75584393]
[1761355845267,63.32,194.02,194.01,2.76]
[1761355845654,4.6368,194.08,194.01,2.76]
[1761355845859,65.65971912,194.07,194.01,2.76]
[1761355846469,2.33971912,194.07,194.02,4.6381]
[1761355846667,63.3,194.06,194.03,2.76]
[1761355848867,2.33971912,194.07,194.03,2.76]
[1761355849169,63.28,194.06,194.03,2.76]
[1761355850162,2.33971912,194.08,194.03,2.76]
[1761355850358,63.24,194.07,194.03,2.76]
[1761355850965,174.98628183,194.1,194.03,7.3976]
[1761355851173,63.24,194.09,194.04,2.76]
[1761355852775,63.24,194.08,194.04,2.76]
[1761355853680,63.22,194.08,194.04,2.76]
[1761355854972,63.22,194.08,194.05,4.6372]
[1761355855170,63.22,194.08,194.05,7.3972]
[1761355855376,63.22,194.08,194.05,4.6372]
[1761355855676,63.22,194.08,194.05,7.3972]
[1761355855885,63.22,194.08,194.06,2.76]
[1761355856071,63.18,194.08,194.06,2.76]
[1761355856877,170.35008183,194.1,194.06,2.76]
[1761355857378,63.18,194.09,194.06,2.76]
[1761355858178,170.35008183,194.1,194.06,2.76]
[1761355858378,63.16,194.09,194.06,2.76]
[1761355859675,65.49971912,194.09,194.06,2.76]
[1761355860180,63.16,194.09,194.06,2.76]
[1761355860480,65.49971912,194.09,194.06,2.76]
[1761355860981,2.33971912,194.09,194.06,2.76]
[1761355861179,63.12,194.08,194.06,2.76]
[1761355861380,2.33971912,194.09,194.06,2.76]
[1761355861575,63.12,194.07,194.06,2.76]
[1761355862382,2.33971912,194.09,194.06,2.76]
[1761355862584,63.12,194.07,194.06,2.76]
[1761355862977,2.33971912,194.09,194.06,2.76]
[1761355863283,63.1,194.08,194.06,2.76]
[1761355865178,170.35008183,194.1,194.08,2.75]
[1761355865386,63.08,194.1,194.08,2.75]
[1761355867983,4.6348,194.16,194.08,2.75]
[1761355868180,2.33971912,194.14,194.09,2.61]
[1761355868378,2.33971912,194.23,194.09,2.61]
[1761355868580,2.33971912,194.2,194.14,4.6352]
[1761355868789,2.33971912,194.2,194.13,2.61]
[1761355868790,63.32,194.19,194.13,2.61]
[1761355869193,63.32,194.19,194.13,4.6352]
[1761355869388,63.32,194.19,194.14,2.61]
[1761355869892,2.33971912,194.23,194.14,2.61]
[1761355870086,63.3,194.22,194.14,2.61]
[1761355870485,63.3,194.21,194.14,2.61]
[1761355870989,63.3,194.21,194.14,7.245]
[1761355871189,2.33971912,194.2,194.14,4.635]
[1761355872694,456.18267794,194.26,194.16,7.2447]
[1761355872898,2.33971912,194.22,194.16,7.2447]
[1761355873498,2.33971912,194.22,194.17,2.61]
[1761355875598,65.59971912,194.22,194.17,2.61]
[1761355876604,2.33971912,194.22,194.17,2.61]
[1761355876903,2.33971912,194.25,194.17,2.61]
[1761355877195,456.18267794,194.26,194.21,2.61]
[1761355877398,2.33971912,194.27,194.21,2.61]
[1761355877599,2.33971912,194.28,194.21,2.61]
[1761355877998,4.6301,194.36,194.24,4.6328]
[1761355878203,4.6301,194.36,194.25,2.61]
[1761355878402,2.33971912,194.32,194.25,2.61]
[1761355878704,2.33971912,194.32,194.21,4.75584393]
[1761355878705,2.33971912,194.32,194.28,2.61]
[1761355879200,2.33971912,194.35,194.3,2.61]
[1761355880400,727.08381265,194.39,194.32,2.61]
[1761355880401,65.63971912,194.37,194.32,2.61]
[1761355880601,63.3,194.38,194.32,2.61]
[1761355880803,2.33971912,194.36,194.32,2.61]
[1761355881204,2.33971912,194.36,194.31,4.6311]
[1761355881403,2.33971912,194.36,194.32,2.61]
[1761355882708,2.33971912,194.37,194.32,2.61]
[1761355883997,2.33971912,194.36,194.32,2.61]
[1761355884606,63.26,194.38,194.32,2.61]
[1761355884798,2.33971912,194.39,194.34,2.61]
[1761355887098,2.33971912,194.38,194.34,2.61]
[1761355888309,63.2,194.41,194.34,2.61]
[1761355888510,2.33971912,194.38,194.34,2.61]
[1761355888913,2.33971912,194.38,194.3,2.61]
[1761355889219,67.8288,194.41,194.3,2.61]
[1761355889406,2.33971912,194.37,194.3,2.61]
[1761355890014,63.2,194.41,194.32,2.61]
[1761355890209,2.33971912,194.38,194.32,2.61]
[1761355890411,2.33971912,194.36,194.32,2.61]
[1761355891010,2.33971912,194.36,194.32,4.6309]
[1761355891217,2.33971912,194.36,194.33,2.61]
[1761355893620,2.33971912,194.37,194.33,2.61]
[1761355894810,1.49118069,194.34,194.33,2.61]
[1761355896521,63.2,194.41,194.33,2.61]
[1761355896723,1.49118069,194.34,194.33,2.61]
[1761355897015,1.49118069,194.34,194.32,7.2409]
[1761355898228,1.49118069,194.34,194.33,2.59]
[1761355900415,1.49118069,194.34,194.26,2.59]
[1761355900611,1.49118069,194.31,194.26,2.59]
[1761355901112,1.49118069,194.32,194.31,7.221]
[1761355904717,1.49118069,194.34,194.33,4.6306]
[1761355904923,1.49118069,194.34,194.33,7.2206]
[1761355905119,15.58458689,194.48,194.34,2.59]
[1761355905315,1.49118069,194.37,194.34,2.59]
[1761355906024,1.49118069,194.37,194.36,4.6299]
[1761355906221,1.49118069,194.39,194.37,2.59]
[1761355907327,1.49118069,194.39,194.31,2.59]
[1761355907622,63.0,194.47,194.31,2.59]
[1761355907623,1.49118069,194.36,194.31,2.59]
[1761355908226,1.49118069,194.37,194.36,7.2198]
[1761355909419,4.628,194.45,194.37,4.6295]
[1761355909619,1.49118069,194.38,194.37,7.2195]
[1761355912129,51.26,194.48,194.38,2.59]
[1761355912130,4.6274,194.47,194.38,2.59]
[1761355912429,1.49118069,194.39,194.38,2.59]
[1761355912626,1.49118069,194.41,194.38,2.59]
[1761355912819,4.6268,194.5,194.38,2.59]
[1761355913026,1.49118069,194.45,194.38,2.59]
[1761355913220,4.6262,194.52,194.43,4.6281]
[1761355913527,4.6262,194.52,194.44,2.59]
[1761355913528,1.49118069,194.48,194.44,2.59]
[1761355914124,4.6262,194.52,194.44,2.59]
[1761355914430,1.49118069,194.49,194.44,2.59]
[1761355916227,720.38675663,194.54,194.45,4.6278]
[1761355916425,720.38675663,194.54,194.46,2.59]
[1761355916426,1.49118069,194.5,194.46,2.59]
[1761355916730,1.49118069,194.51,194.46,2.59]
[1761355917131,1.49118069,194.52,194.46,7.2174]
[1761355917431,1.49118069,194.52,194.47,2.59]
[1761355917631,715.76105663,194.54,194.47,2.59]
[1761355917833,1.49118069,194.52,194.47,2.59]
[1761355919332,1.49118069,194.51,194.47,2.59]
[1761355921430,6.11818069,194.49,194.36,7.86236172]
[1761355921634,1.49118069,194.43,194.37,2.79]
[1761355922135,1.49118069,194.41,194.37,2.79]
[1761355922930,1.49118069,194.43,194.37,2.79]
[1761355925543,4.6273,194.47,194.37,2.79]
[1761355925738,1.49118069,194.43,194.37,2.79]
[1761355928549,1.49118069,194.39,194.34,2.58]
[1761355931257,1.49118069,194.39,194.32,2.58]
[1761355932053,1.49118069,194.37,194.32,2.58]
[1761355937061,1.49118069,194.35,194.28,2.58]
[1761355938863,1.49118069,194.33,194.28,2.58]
[1761355940756,1.49118069,194.35,194.28,2.58]
[1761355941252,3.82288212,194.4,194.3,2.58]
[1761355941458,1.49118069,194.38,194.3,2.58]
[1761355941959,1.49118069,194.36,194.3,2.58]
[1761355942161,1.49118069,194.32,194.27,2.58]
[1761355942360,1.49118069,194.3,194.27,2.58]
[1761355942557,1.49118069,194.28,194.24,2.58]
[1761355942757,1.49118069,194.3,194.24,2.58]
[1761355947971,1.49118069,194.28,194.21,2.58]
[1761355948267,1.49118069,194.26,194.21,2.58]
[1761355949066,1.49118069,194.22,194.17,2.58]
[1761355949967,1.49118069,194.2,194.14,2.58]
[1761355951364,4.633,194.23,194.11,2.58]
[1761355951365,1.49118069,194.18,194.11,2.58]
[1761355955069,1.49118069,194.18,194.12,2.58]
[1761355955774,1.49118069,194.18,194.12,7.2156]
[1761355955969,1.49118069,194.18,194.13,2.58]
[1761355956370,1.49118069,194.2,194.13,2.58]
[1761355956777,2.33405008,194.22,194.13,2.58]
[1761355956969,2.33405008,194.25,194.15,2.58]
[1761355957570,4.6328,194.24,194.15,2.58]
[1761355965278,4.6332,194.23,194.15,2.58]
[1761355981185,4.6332,194.23,194.15,4.6347]
[1761355981388,4.6332,194.23,194.16,2.74]
[1761355990397,4.6332,194.23,194.16,7.47672734]
[1761355991699,4.6332,194.23,194.16,12.11122734]
[1761355992197,4.6332,194.23,194.17,2.81]
[1761355992402,3.83607592,194.25,194.19,2.81]
[1761355992597,3.83607592,194.29,194.24,2.81]
[1761355992794,3.83607592,194.34,194.27,2.81]
[1761355993395,179.4862301,194.35,194.27,2.81]
[1761355993798,179.4862301,194.35,194.26,4.76593856]
[1761355994004,2.33405008,194.33,194.26,4.76593856]
[1761355994199,2.33405008,194.33,194.25,4.76593856]
[1761355994514,179.4862301,194.35,194.23,2.81]
[1761355994515,2.33405008,194.3,194.23,7.57593856]
[1761355994808,65.23405008,194.3,194.23,2.81]
[1761355995007,65.23405008,194.3,194.21,4.76593856]
[1761355995206,65.23405008,194.3,194.22,2.81]
[1761355995607,65.23405008,194.3,194.22,7.57593856]
[1761355996207,65.23405008,194.3,194.22,2.81]
[1761355997012,4.6318,194.29,194.22,2.81]
[1761355997707,65.23405008,194.3,194.22,2.81]
[1761355999017,4.6323,194.27,194.22,2.81]
[1761356000120,4.6325,194.26,194.19,4.76593856]
[1761356000316,4.6325,194.26,194.18,12.20993856]
[1761356001021,4.6325,194.26,194.19,7.57593856]
[1761356001721,4.6325,194.26,194.2,2.81]
[1761356002223,15.0,194.34,194.23,2.81]
[1761356002422,62.9,194.33,194.23,2.81]
[1761356003622,4.6313,194.3,194.23,2.81]
[1761356005425,62.9,194.33,194.21,4.76593856]
[1761356005618,62.9,194.33,194.2,4.76593856]
[1761356005815,62.9,194.33,194.2,7.57593856]
[1761356006117,4.632,194.28,194.21,2.81]
[1761356006318,4.632,194.28,194.21,7.57593856]
[1761356006517,4.632,194.28,194.22,2.81]
[1761356009524,62.88,194.27,194.2,9.39943856]
[1761356009925,62.88,194.27,194.2,12.20943856]
[1761356011221,62.88,194.27,194.2,7.57593856]
[1761356011222,4.6325,194.26,194.2,7.57593856]
[1761356011427,4.6325,194.26,194.2,2.81]
[1761356016827,4.6325,194.26,194.2,4.30280619]
[1761356018731,4.6327,194.25,194.2,2.81]
[1761356018934,1.49280619,194.26,194.17,8.84874475]
[1761356019938,4.6332,194.23,194.17,8.84874475]
[1761356021540,1.49280619,194.22,194.14,6.25874475]
[1761356021739,1.49280619,194.19,194.13,7.35593856]
[1761356022038,1.49280619,194.17,194.11,4.76593856]
[1761356022238,1.49280619,194.17,194.1,7.35593856]
[1761356022631,69.00750619,194.17,194.1,7.35593856]
[1761356023836,1.49280619,194.15,194.1,4.76593856]
[1761356024043,1.49280619,194.15,194.02,8.95181861]
[1761356024044,4.6365,194.09,194.02,8.95181861]
[1761356024335,1.49280619,194.04,194.02,2.59]
[1761356024534,1.49280619,194.04,193.9,69.38065756]
[1761356024535,1.49280619,194.04,193.99,2.59]
[1761356024936,1.49280619,194.02,193.99,2.59]
[1761356025246,1.49280619,194.02,193.93,12.05662614]
[1761356025247,1.49280619,194.02,193.94,2.59]
[1761356026738,4.6379,194.03,193.94,2.59]
[1761356026936,1.49280619,194.0,193.94,2.59]
[1761356030441,4.6366,194.08,193.95,2.59]
[1761356030642,1.49280619,194.02,193.95,2.59]
[1761356036054,1.49280619,194.06,193.97,1.49280619]
[1761356036257,1.49280619,194.06,193.98,2.59]
[1761356037355,1.49280619,194.06,193.98,4.6389]
[1761356037560,1.49280619,194.08,193.99,2.59]
[1761356037762,1.49280619,194.08,194.0,2.59]
[1761356038554,1.49280619,194.08,194.01,2.59]
[1761356040261,1.49280619,194.04,194.01,2.59]
[1761356041461,1.49280619,194.06,194.01,2.59]
[1761356043758,1.49280619,194.04,194.01,2.59]
[1761356045156,1.49280619,194.04,193.98,2.59]
[1761356046464,4.6371,194.07,193.98,2.59]
[1761356046661,1.49280619,194.03,193.98,2.59]
[1761356047852,1.49280619,194.01,193.98,2.59]
[1761356048365,1.49280619,193.99,193.94,2.6]
[1761356048562,1.49280619,193.95,193.91,2.6]
[1761356049464,34.58,194.02,193.78,9.2873]
[1761356049465,1.49280619,193.93,193.88,2.6]
[1761356050863,177.60769051,193.98,193.88,2.6]
[1761356051062,1.49280619,193.95,193.88,2.6]
[1761356051767,177.60769051,193.98,193.91,4.09280619]
[1761356051968,177.60769051,193.98,193.92,2.6]
[1761356057373,179.1004967,193.98,193.92,2.6]
[1761356058975,1.49280619,193.96,193.88,7.2411]
[1761356059275,1.49280619,193.94,193.88,7.2411]
[1761356059462,1.49280619,193.94,193.89,2.6]
[1761356059859,1.49280619,193.94,193.89,4.6409]
[1761356060175,64.45280619,193.96,193.9,2.6]
[1761356060772,1.49280619,193.94,193.9,2.6]
[1761356060974,1.49280619,193.94,193.91,2.6]
[1761356062477,1.49280619,193.94,193.88,4.6413]
[1761356062776,1.49280619,193.92,193.88,7.2413]
[1761356063171,1.49280619,193.92,193.89,2.6]
[1761356063673,1.49280619,193.9,193.87,3.49749707]
[1761356065078,1.49280619,193.9,193.87,0.89749707]
[1761356065269,1.49280619,193.9,193.88,2.6]
[1761356067867,1.49280619,193.9,193.86,2.6]
[1761356071474,1.49280619,193.9,193.87,4.6416]
[1761356071681,1.49280619,193.92,193.88,2.6]
[1761356071989,5.25122122,193.95,193.88,2.6]
[1761356072174,1.49280619,193.95,193.88,2.6]
[1761356072374,5.25122122,193.95,193.88,2.6]
[1761356072579,1.49280619,193.95,193.88,2.6]
[1761356072781,5.25122122,193.95,193.88,2.6]
[1761356072973,1.49280619,193.93,193.91,2.6]
[1761356073480,1.49280619,193.93,193.88,2.6]
[1761356073673,1.49280619,193.93,193.88,7.2413]
[1761356073880,3.75841503,193.96,193.85,0.89760124]
[1761356073881,1.49280619,193.91,193.86,2.6]
[1761356075081,1.49280619,193.91,193.87,2.6]
[1761356075783,1.49280619,193.91,193.88,2.6]
[1761356077387,1.49280619,193.91,193.85,5.53960124]
[1761356077680,1.49280619,193.89,193.86,2.6]
[1761356078690,2.34102133,193.92,193.86,2.6]
[1761356082285,15.0,193.97,193.86,2.6]
[1761356082491,2.34102133,193.95,193.87,4.6415]
[1761356082688,2.34102133,193.92,193.87,7.4615]
[1761356083186,2.34102133,193.92,193.88,2.82]
[1761356085190,6.98232133,193.89,193.81,2.82]
[1761356085488,2.34102133,193.86,193.81,2.82]
[1761356085690,2.34102133,193.86,193.82,2.82]
[1761356088300,2.34102133,193.88,193.82,2.82]
[1761356090584,6.98242133,193.88,193.82,2.82]
[1761356092790,3.75867086,193.87,193.82,2.82]
[1761356097090,6.98242133,193.88,193.82,2.82]
[1761356097594,3.75714186,193.87,193.82,2.82]
[1761356098393,3.75724733,193.87,193.82,2.74]
[1761356098797,3.75724733,193.89,193.84,2.74]
[1761356099895,3.75746185,193.89,193.84,2.74]
[1761356100392,4.8107056,193.93,193.79,0.89789073]
[1761356100393,62.98,193.92,193.85,2.74]
[1761356100601,3.75747473,193.91,193.85,2.74]
[1761356102092,3.75747473,193.91,193.86,2.74]
[1761356102498,66.73747473,193.95,193.86,2.74]
[1761356102797,3.75747473,193.94,193.86,2.74]
[1761356102993,3.75747473,193.94,193.87,7.3814]
[1761356103399,3.75747473,193.93,193.87,7.3814]
[1761356103596,3.75747473,193.94,193.87,7.3814]
[1761356103796,3.75747473,193.93,193.87,7.3814]
[1761356103998,8.39757473,193.94,193.87,7.3814]
[1761356104298,3.75747473,193.93,193.88,2.74]
[1761356104498,3.75747473,193.94,193.89,2.74]
[1761356104795,177.60769051,193.98,193.89,2.74]
[1761356105009,3.75874884,193.97,193.89,2.74]
[1761356105195,3.75874884,193.97,193.87,2.34102133]
[1761356105502,177.60769051,193.98,193.93,2.34102133]
[1761356105700,177.60769051,193.98,193.94,2.74]
[1761356106600,62.96,194.03,193.94,2.74]
[1761356106800,3.75560399,194.02,193.94,2.74]
[1761356107099,3.75560399,194.02,193.97,2.74]
[1761356107603,3.75560399,194.04,193.97,2.74]
[1761356109606,3.75560399,194.04,193.98,2.76]
[1761356109809,65.30102133,194.09,193.98,2.76]
[1761356110108,3.74979034,194.08,193.98,2.76]
[1761356110500,3.74979034,194.08,193.94,2.34102133]
[1761356110706,3.74979034,194.08,193.95,2.76]
[1761356111506,2.34102133,194.06,193.99,2.76]
[1761356115317,2.34102133,194.03,193.91,2.76]
[1761356115799,2.34102133,194.03,193.95,2.76]
[1761356118498,6.97882133,194.04,193.97,2.76]
[1761356125810,6.97882133,194.04,193.96,7.3994]
[1761356128013,17.34102133,194.08,193.98,2.76]
[1761356128210,66.62298151,194.07,193.98,2.76]
[1761356128413,62.92,194.07,193.98,2.76]
[1761356128614,4.6375,194.05,193.98,2.76]
[1761356129314,4.6378,194.04,193.98,2.76]
[1761356130615,4.6378,194.04,193.95,7.3997]
[1761356133712,4.6378,194.04,193.96,2.76]
[1761356135321,4.638,194.03,193.96,2.76]
[1761356135918,2.34102133,194.02,193.93,4.6402]
[1761356136121,2.34102133,194.02,193.93,7.4002]
[1761356136317,2.34102133,194.02,193.93,2.76]
[1761356136526,2.34102133,193.99,193.93,2.76]
[1761356138018,6.98002133,193.99,193.93,2.76]
[1761356138818,1.49713921,193.97,193.93,2.76]